bitfinex/quotes_BTCUSD_20250303
["timestamp","ask_amount","ask_price","bid_price","bid_amount"]
[1741015005735,0.00937509,90234.0,90204.0,0.01454085]
[1741015005890,0.00155107,90248.0,90206.0,0.01454085]
[1741015006092,0.0077648,90247.0,90211.0,0.3]
[1741015006255,0.04675107,90258.0,90215.0,0.01454085]
[1741015006450,0.04675107,90258.0,90209.0,0.3]
[1741015006451,0.04675107,90258.0,90221.0,0.3]
[1741015006666,0.00155107,90265.0,90222.0,0.01609234]
[1741015006864,0.00155107,90265.0,90216.0,0.16696]
[1741015006865,0.00155107,90265.0,90217.0,0.3]
[1741015007065,0.16621,90247.0,90224.0,0.166252]
[1741015007272,0.00931587,90246.0,90218.0,0.221685]
[1741015007562,0.00931587,90246.0,90216.0,0.16696]
[1741015007563,0.00155107,90246.0,90221.0,0.221677]
[1741015007753,0.08918967,90266.0,90222.0,0.00155168]
[1741015007957,0.00155107,90265.0,90216.0,0.16696]
[1741015008143,0.166198,90254.0,90230.0,0.16624]
[1741015008459,0.08918967,90266.0,90216.0,0.16696]
[1741015008460,0.221605,90251.0,90216.0,0.16696]
[1741015008661,0.0078741,90253.0,90238.0,0.166225]
[1741015008795,0.00155107,90262.0,90250.0,0.166203]
[1741015008999,0.08918967,90266.0,90224.0,0.01454085]
[1741015009228,0.00786654,90261.0,90225.0,0.00155111]
[1741015009435,0.00011949,90266.0,90226.0,0.3]
[1741015009630,0.00011949,90266.0,90230.0,0.3]
[1741015009835,0.00155107,90265.0,90232.0,0.3]
[1741015010059,0.00155107,90265.0,90230.0,0.16624]
[1741015010233,0.166196,90255.0,90227.0,0.16688]
[1741015010415,0.00155107,90254.0,90227.0,0.16688]
[1741015010623,0.166201,90252.0,90227.0,0.16688]
[1741015010933,0.00155107,90256.0,90227.0,0.16688]
[1741015011158,0.00788946,90251.0,90227.0,0.16688]
[1741015011324,0.00155107,90250.0,90233.0,0.221647]
[1741015011524,0.00788343,90250.0,90227.0,0.16688]
[1741015011741,0.00155107,90249.0,90227.0,0.16688]
[1741015011944,0.00155107,90256.0,90227.0,0.16688]
[1741015012479,0.00788343,90255.0,90227.0,0.16688]
[1741015012682,0.00155107,90254.0,90227.0,0.16688]
[1741015012848,0.00786418,90253.0,90227.0,0.16688]
[1741015013073,0.00155107,90252.0,90227.0,0.16688]
[1741015013290,0.01737918,90257.0,90228.0,0.00155158]
[1741015013291,0.00155107,90256.0,90228.0,0.00155158]
[1741015013584,0.01737918,90257.0,90246.0,0.16621]
[1741015013786,0.01737918,90257.0,90240.0,0.166221]
[1741015013989,0.01737918,90257.0,90228.0,0.30155131]
[1741015014211,0.00011949,90266.0,90229.0,0.01454085]
[1741015014416,0.00011949,90266.0,90265.0,0.15317698]
[1741015015021,0.00011949,90266.0,90265.0,0.1547278]
[1741015015543,6.9e-07,90267.0,90266.0,0.3]
[1741015015792,0.0451,90342.0,90285.0,0.48068085]
[1741015015992,0.0451,90342.0,90274.0,0.16672]
[1741015015993,0.00155107,90341.0,90274.0,0.16672]
[1741015016184,0.0451,90342.0,90285.0,0.16614]
[1741015016185,0.00155107,90303.0,90285.0,0.16614]
[1741015016697,0.00155107,90315.0,90285.0,0.16614]
[1741015016902,0.166067,90325.0,90285.0,0.16614]
[1741015017174,0.1,90365.0,90285.0,0.16614]
[1741015017175,0.166073,90322.0,90285.0,0.16614]
[1741015017372,0.16607,90324.0,90285.0,0.16614]
[1741015017575,0.00155107,90323.0,90255.0,0.221591]
[1741015017815,0.00155107,90303.0,90266.0,0.00155056]
[1741015018018,0.00155107,90303.0,90237.0,0.112123]
[1741015018019,0.00771842,90285.0,90257.0,0.16668]
[1741015018219,0.00771842,90285.0,90265.0,0.221569]
[1741015018220,0.00926949,90285.0,90265.0,0.221569]
[1741015018419,0.00926949,90285.0,90266.0,0.166174]
[1741015018574,0.00926949,90285.0,90257.0,0.16668]
[1741015018776,0.00926949,90285.0,90249.0,0.221607]
[1741015018962,0.00926949,90285.0,90217.0,0.332528]
[1741015018963,0.00926949,90285.0,90242.0,0.16664]
[1741015019176,0.00938907,90285.0,90242.0,0.16664]
[1741015019379,0.01038907,90285.0,90274.0,0.007]
[1741015019585,0.3,90282.0,90274.0,0.007]
[1741015019787,0.01737645,90276.0,90274.0,0.007]
[1741015019987,0.00111958,90285.0,90274.0,0.007]
[1741015020190,0.00771842,90275.0,90274.0,0.17316]
[1741015020476,0.00111958,90285.0,90284.0,0.166142]
[1741015020649,0.00111958,90285.0,90251.0,0.332403]
[1741015020650,0.00011958,90285.0,90258.0,0.3]
[1741015020860,0.00011958,90285.0,90278.0,0.166153]
[1741015021181,0.00011958,90285.0,90274.0,0.003]
[1741015021381,0.166143,90284.0,90243.0,0.22317408]
[1741015021509,0.166166,90271.0,90210.0,0.48364028]
[1741015021709,0.167158,90275.0,90274.0,0.007]
[1741015021930,0.00881997,90275.0,90216.0,0.332531]
[1741015022155,0.3,90273.0,90217.0,0.16656]
[1741015022332,0.3,90273.0,90247.0,0.166208]
[1741015022553,0.00780624,90272.0,90217.0,0.16656]
[1741015022765,0.00780624,90272.0,90220.0,0.01454085]
[1741015022941,0.00780624,90272.0,90217.0,0.16656]
[1741015023140,0.00780624,90272.0,90220.0,0.45030728]
[1741015023340,0.00780624,90272.0,90221.0,0.31454085]
[1741015023642,0.00111958,90285.0,90274.0,0.16616]
[1741015023849,4e-05,90273.0,90254.0,0.16652]
[1741015024031,4e-05,90273.0,90253.0,0.16652]
[1741015024266,4e-05,90273.0,90201.0,0.124371]
[1741015024267,0.3,90268.0,90216.0,0.00155122]
[1741015024480,0.166198,90254.0,90230.0,0.166241]
[1741015024679,4e-05,90273.0,90206.0,0.00155156]
[1741015024680,0.00155107,90253.0,90206.0,0.00155156]
[1741015024933,0.08469533,90252.0,90229.0,0.166243]
[1741015025134,0.08469533,90252.0,90206.0,0.00155156]
[1741015025135,0.00155107,90251.0,90206.0,0.00155156]
[1741015025451,0.01738102,90250.0,90206.0,0.00155156]
[1741015025578,0.02513738,90250.0,90230.0,0.004]
[1741015025778,0.00155107,90249.0,90230.0,0.004]
[1741015026024,0.00155107,90249.0,90207.0,0.00155143]
[1741015026025,0.00930743,90249.0,90207.0,0.00155143]
[1741015026222,0.0475,90256.0,90210.0,0.45030728]
[1741015026425,0.001,90251.0,90212.0,0.01454085]
[1741015026747,0.001,90251.0,90250.0,0.166204]
[1741015026948,0.001,90251.0,90250.0,0.64877567]
[1741015027110,0.001,90251.0,90250.0,0.64722485]
[1741015027308,0.00201,90291.0,90250.0,0.64722485]
[1741015027309,0.00201,90291.0,90272.0,0.166164]
[1741015027859,0.00201,90291.0,90272.0,0.16771457]
[1741015028077,0.00201,90291.0,90272.0,0.165164]
[1741015028267,0.00015956,90273.0,90272.0,0.165164]
[1741015028568,0.00015956,90273.0,90272.0,0.18125552]
[1741015028768,0.00115956,90273.0,90272.0,0.48725552]
[1741015028924,0.00015956,90273.0,90272.0,0.47970485]
[1741015029343,0.00115956,90273.0,90272.0,0.48470485]
[1741015029565,0.00015956,90273.0,90272.0,0.47970485]
[1741015030016,0.00015956,90273.0,90266.0,0.01227297]
[1741015030740,0.00015956,90273.0,90254.0,0.000171]
[1741015031245,0.00019956,90273.0,90254.0,0.000171]
[1741015031450,0.00119956,90273.0,90266.0,0.007]
[1741015031698,0.00119956,90273.0,90254.0,0.000171]
[1741015031903,0.00772573,90272.0,90254.0,0.000171]
[1741015032106,0.0092768,90272.0,90254.0,0.007171]
[1741015032306,0.00772573,90272.0,90271.0,0.166166]
[1741015032508,0.00019956,90273.0,90272.0,0.166164]
[1741015032708,0.00119956,90273.0,90272.0,0.166164]
[1741015032909,0.00119956,90273.0,90272.0,0.16771477]
[1741015033087,0.00119956,90273.0,90272.0,0.46771477]
[1741015033285,0.00119956,90273.0,90272.0,0.48070485]
[1741015034208,0.00119956,90273.0,90272.0,0.166164]
[1741015034536,0.00019956,90273.0,90272.0,0.18225556]
[1741015034742,0.00019956,90273.0,90272.0,0.165164]
[1741015034944,0.00019956,90273.0,90266.0,0.166174]
[1741015035142,0.00019956,90273.0,90257.0,0.166191]
[1741015035364,0.00019956,90273.0,90272.0,0.007]
[1741015035571,0.00119956,90273.0,90272.0,0.007]
[1741015035889,0.00119956,90273.0,90254.0,0.000171]
[1741015035890,0.00119956,90273.0,90261.0,0.166182]
[1741015036067,0.00119956,90273.0,90254.0,0.000171]
[1741015036268,0.00119956,90273.0,90255.0,0.221594]
[1741015036434,0.00781044,90272.0,90257.0,0.01454085]
[1741015036636,0.00119956,90273.0,90272.0,0.18070485]
[1741015036837,0.00119956,90273.0,90272.0,0.466164]
[1741015037079,0.00219956,90273.0,90272.0,0.466164]
[1741015037278,0.00201,90317.0,90285.0,0.3]
[1741015037478,0.00201,90317.0,90265.0,0.16624]
[1741015037479,0.00201,90317.0,90316.0,0.48062385]
[1741015037654,0.00240883,90317.0,90316.0,0.47962385]
[1741015037858,0.00240883,90317.0,90316.0,0.465083]
[1741015038073,0.00240883,90317.0,90316.0,0.3]
[1741015038275,0.00240883,90317.0,90316.0,0.466083]
[1741015038478,8.3e-07,90317.0,90316.0,0.465083]
[1741015039056,0.00100083,90317.0,90316.0,0.472083]
[1741015039316,0.00100083,90317.0,90316.0,0.638283]
[1741015040202,8.3e-07,90317.0,90316.0,0.631283]
[1741015040400,8.3e-07,90317.0,90316.0,0.64582385]
[1741015040603,8.3e-07,90317.0,90316.0,0.65282385]
[1741015040604,0.00100083,90317.0,90316.0,0.65282385]
[1741015041145,0.00100083,90317.0,90316.0,0.64582385]
[1741015041328,0.00190547,90317.0,90316.0,0.65282385]
[1741015041628,0.0003414,90337.0,90336.0,0.166046]
[1741015041836,0.0003414,90337.0,90336.0,0.47958685]
[1741015041989,0.00046097,90337.0,90336.0,0.47958685]
[1741015043490,0.00046097,90337.0,90336.0,0.465046]
[1741015043900,0.00046097,90337.0,90336.0,0.631046]
[1741015044313,0.00050097,90337.0,90336.0,0.638046]
[1741015044674,0.00050097,90337.0,90336.0,0.65258685]
[1741015044877,0.00050097,90337.0,90336.0,0.314]
[1741015045084,0.00050097,90337.0,90304.0,0.01206306]
[1741015045381,0.00050097,90337.0,90278.0,0.1451]
[1741015045382,0.00050097,90337.0,90321.0,0.01454085]
[1741015045596,0.00050097,90337.0,90336.0,0.007]
[1741015046761,0.00050097,90337.0,90336.0,0.02154085]
[1741015047559,0.00050097,90337.0,90336.0,0.331966]
[1741015047759,0.00150097,90337.0,90336.0,0.331966]
[1741015048128,0.00050097,90337.0,90336.0,0.166046]
[1741015048336,0.00150097,90337.0,90336.0,0.007]
[1741015048899,0.0113554,90337.0,90292.0,0.16488]
[1741015049104,0.00250097,90337.0,90336.0,0.007]
[1741015049353,0.00209204,90337.0,90293.0,0.00155019]
[1741015049480,0.00209204,90337.0,90292.0,0.16488]
[1741015049685,0.00209204,90337.0,90293.0,0.00155021]
[1741015050067,0.00054097,90337.0,90293.0,0.00155021]
[1741015050292,0.00054097,90337.0,90293.0,0.00155]
[1741015050522,0.00054097,90337.0,90294.0,0.01454085]
[1741015050697,0.00154097,90337.0,90336.0,0.007]
[1741015051205,0.00054097,90337.0,90297.0,0.00154964]
[1741015051401,0.00154097,90337.0,90297.0,0.00154964]
[1741015051555,0.1,90326.0,90260.0,0.38895096]
[1741015051736,0.1,90326.0,90212.0,0.1165]
[1741015051737,0.1,90326.0,90270.0,0.45030728]
[1741015051936,0.1,90325.0,90271.0,0.00077429]
[1741015052276,0.00193746,90336.0,90271.0,0.00077429]
[1741015052277,0.1,90313.0,90272.0,0.1658]
[1741015052434,0.1,90313.0,90273.0,0.00077484]
[1741015052636,0.1,90313.0,90297.0,0.007]
[1741015053419,0.1,90300.0,90297.0,0.007]
[1741015053626,0.1,90298.0,90297.0,0.007]
[1741015053822,0.1,90304.0,90297.0,0.007]
[1741015054017,0.01737024,90310.0,90256.0,0.01187354]
[1741015054018,0.1,90302.0,90257.0,0.00077522]
[1741015054157,0.1,90299.0,90278.0,0.16576]
[1741015054368,0.1,90296.0,90278.0,0.16576]
[1741015054782,0.1,90296.0,90278.0,0.16615883]
[1741015054992,4e-05,90300.0,90278.0,0.16615883]
[1741015055194,4e-05,90300.0,90279.0,0.01531643]
[1741015055399,0.00909148,90299.0,90279.0,0.31531643]
[1741015055601,0.00909148,90299.0,90279.0,0.31454085]
[1741015055798,0.00909148,90299.0,90280.0,0.01531589]
[1741015055999,0.001,90299.0,90280.0,0.00077504]
[1741015056492,0.1,90298.0,90280.0,0.00077524]
[1741015056696,0.10809148,90298.0,90280.0,0.00077524]
[1741015057098,0.1,90295.0,90278.0,0.00739883]
[1741015057318,0.1,90295.0,90280.0,0.00077544]
[1741015057524,0.001,90296.0,90278.0,0.00039883]
[1741015057525,0.1,90291.0,90278.0,0.00039883]
[1741015057840,0.1,90289.0,90280.0,0.003]
[1741015058474,0.1,90293.0,90280.0,0.003]
[1741015058659,0.00909148,90298.0,90278.0,0.00039883]
[1741015058660,0.1,90285.0,90278.0,0.00039883]
[1741015058900,0.1,90285.0,90278.0,0.00339883]
[1741015059084,0.1,90285.0,90278.0,0.00239883]
[1741015060044,0.1,90285.0,90272.0,0.0001701]
[1741015060238,0.001,90289.0,90280.0,0.002]
[1741015060658,0.00809148,90298.0,90272.0,0.0001701]
[1741015061095,0.001,90285.0,90279.0,0.01454085]
[1741015061327,0.00809148,90298.0,90281.0,0.31454085]
[1741015061528,0.00809148,90298.0,90282.0,0.00077408]
[1741015061705,0.001,90289.0,90282.0,0.00077408]
[1741015062333,0.001,90289.0,90288.0,0.166135]
[1741015062539,0.001,90289.0,90288.0,0.46690994]
[1741015062743,0.001,90289.0,90288.0,0.166135]
[1741015063355,0.001,90289.0,90288.0,0.165135]
[1741015063561,0.001,90289.0,90288.0,0.17967585]
[1741015063760,0.00809148,90298.0,90297.0,0.166118]
[1741015063990,0.00809148,90298.0,90297.0,0.48143359]
[1741015064175,0.00809148,90298.0,90240.0,0.45030728]
[1741015064392,0.001,90289.0,90288.0,0.168135]
[1741015064565,0.00809148,90298.0,90285.0,0.22152]
[1741015064780,0.00809148,90298.0,90286.0,0.00077508]
[1741015064955,0.00909148,90298.0,90297.0,0.002]
[1741015065154,0.01716629,90298.0,90280.0,0.0007751]
[1741015065358,0.00909148,90298.0,90280.0,0.0007751]
[1741015065663,0.00909148,90298.0,90297.0,0.166118]
[1741015066234,0.00909148,90298.0,90289.0,0.22151]
[1741015066428,0.00909148,90298.0,90268.0,0.443123]
[1741015066429,0.00909148,90298.0,90297.0,0.166118]
[1741015066622,0.00909148,90298.0,90290.0,0.221506]
[1741015066623,0.00807424,90297.0,90296.0,0.16612]
[1741015066750,0.01009148,90298.0,90296.0,0.166119]
[1741015066950,0.00809148,90298.0,90297.0,0.166118]
[1741015067268,0.11716572,90298.0,90297.0,0.007]
[1741015067491,0.01616572,90298.0,90272.0,0.00094559]
[1741015067664,0.1,90296.0,90273.0,0.00077548]
[1741015067849,0.1,90296.0,90282.0,0.221526]
[1741015068049,0.1,90296.0,90282.0,0.166144]
[1741015068253,0.1,90288.0,90272.0,0.0001701]
[1741015068494,0.00807424,90295.0,90272.0,0.0001701]
[1741015068495,0.1,90293.0,90272.0,0.0001701]
[1741015068810,0.10807424,90292.0,90274.0,0.221547]
[1741015068986,0.1,90288.0,90275.0,0.0007756]
[1741015069196,0.00807424,90292.0,90275.0,0.0007756]
[1741015069376,0.1,90295.0,90288.0,0.166133]
[1741015069616,0.1,90295.0,90272.0,0.0001701]
[1741015069617,0.1,90283.0,90272.0,0.0001701]
[1741015070042,0.00803217,90282.0,90272.0,0.0001701]
[1741015070239,0.01921814,90281.0,90272.0,0.0001701]
[1741015070803,0.00803088,90280.0,90272.0,0.0001701]
[1741015071146,0.01921814,90279.0,90272.0,0.0001701]
[1741015071347,0.01921814,90279.0,90272.0,0.0071701]
[1741015071569,0.00803088,90278.0,90273.0,0.0007758]
[1741015074390,0.00807088,90278.0,90273.0,0.007]
[1741015075350,0.00807088,90278.0,90230.0,0.01454085]
[1741015075584,4e-05,90278.0,90273.0,0.007]
[1741015076050,0.00803088,90277.0,90273.0,0.007]
[1741015077248,0.00803088,90277.0,90255.0,0.3]
[1741015077458,0.00803088,90277.0,90256.0,0.01454085]
[1741015077633,4e-05,90278.0,90256.0,0.01454085]
[1741015077634,4e-05,90278.0,90277.0,0.166155]
[1741015077798,4e-05,90278.0,90277.0,0.18069585]
[1741015078256,4e-05,90278.0,90257.0,0.221589]
[1741015078464,4e-05,90278.0,90277.0,0.166155]
[1741015078665,4e-05,90278.0,90277.0,0.18069585]
[1741015079360,4e-05,90278.0,90277.0,0.166155]
[1741015080345,4e-05,90278.0,90277.0,0.18069585]
[1741015080548,4e-05,90278.0,90277.0,0.166155]
[1741015080750,4e-05,90278.0,90277.0,0.173155]
[1741015080951,4e-05,90278.0,90277.0,0.166155]
[1741015081160,4e-05,90278.0,90277.0,0.18069585]
[1741015081384,4e-05,90278.0,90277.0,0.18769585]
[1741015081594,4e-05,90278.0,90277.0,0.173155]
[1741015082341,4e-05,90278.0,90277.0,0.166155]
[1741015082752,4e-05,90278.0,90277.0,0.18069585]
[1741015083886,4e-05,90279.0,90278.0,0.48069385]
[1741015083887,1e-06,90279.0,90278.0,0.48069385]
[1741015084320,4e-05,90292.0,90291.0,0.466129]
[1741015084653,4e-05,90292.0,90291.0,0.631249]
[1741015085009,4e-05,90292.0,90291.0,0.64578985]
[1741015085846,4e-05,90292.0,90291.0,0.65278985]
[1741015086052,6.8e-07,90300.0,90299.0,0.466114]
[1741015086374,0.100341,90408.0,90300.0,0.31454085]
[1741015086375,0.1,90361.0,90300.0,0.31454085]
[1741015086578,0.00082023,90337.0,90336.0,0.48058685]
[1741015086815,0.00082023,90337.0,90336.0,0.64566685]
[1741015087547,0.00082023,90337.0,90336.0,0.64466685]
[1741015088550,0.00182023,90337.0,90336.0,0.65166685]
[1741015089107,6.3e-07,90345.0,90344.0,0.466032]
[1741015089309,2.2e-07,90345.0,90344.0,0.48057285]
[1741015089486,0.00201,90396.0,90356.0,0.46601]
[1741015089699,0.10201,90396.0,90356.0,0.48055085]
[1741015090012,0.1,90390.0,90356.0,0.48055085]
[1741015090216,0.00201,90396.0,90356.0,0.48055085]
[1741015090776,0.1,90388.0,90356.0,0.48055085]
[1741015090973,0.00201,90396.0,90356.0,0.48055085]
[1741015091193,0.1,90388.0,90356.0,0.48055085]
[1741015091385,0.1,90380.0,90356.0,0.48055085]
[1741015091587,0.1,90378.0,90356.0,0.46601]
[1741015091926,0.1,90365.0,90356.0,0.16488]
[1741015092121,0.00201,90396.0,90356.0,0.16488]
[1741015092122,0.1,90383.0,90356.0,0.17188]
[1741015092324,0.1,90383.0,90356.0,0.18642085]
[1741015092902,0.0003416,90386.0,90356.0,0.18642085]
[1741015093108,0.0003416,90386.0,90357.0,0.31454085]
[1741015093109,0.0003502,90370.0,90357.0,0.31454085]
[1741015093306,0.00201,90396.0,90362.0,0.01454085]
[1741015093503,0.00201,90396.0,90381.0,0.01454085]
[1741015093823,0.0001195,90389.0,90381.0,0.01454085]
[1741015094206,0.00201,90396.0,90381.0,0.01454085]
[1741015094406,0.000341,90407.0,90383.0,0.3]
[1741015094604,0.000341,90407.0,90398.0,0.31454085]
[1741015094929,0.000341,90407.0,90400.0,0.31454085]
[1741015095289,0.000341,90407.0,90399.0,0.2136]
[1741015095692,0.000341,90407.0,90397.0,0.45030728]
[1741015095693,0.000341,90407.0,90400.0,0.3]
[1741015096064,0.000341,90407.0,90403.0,0.01454085]
[1741015096263,0.00201,90449.0,90413.0,0.3]
[1741015096463,0.00201,90449.0,90431.0,0.3]
[1741015096678,0.00201,90449.0,90433.0,0.3]
[1741015096883,0.00201,90449.0,90432.0,0.10883702]
[1741015096884,0.00073883,90448.0,90436.0,0.01454085]
[1741015097015,0.00073883,90448.0,90438.0,0.01454085]
[1741015097209,0.00073883,90448.0,90440.0,0.31454085]
[1741015097619,0.00073883,90448.0,90441.0,0.16468]
[1741015098053,0.00073883,90448.0,90442.0,0.31454085]
[1741015098417,0.00073883,90448.0,90442.0,0.3]
[1741015099375,0.00073883,90448.0,90447.0,0.165842]
[1741015099770,0.00073883,90448.0,90447.0,0.18038285]
[1741015099970,0.00073883,90448.0,90447.0,0.165842]
[1741015100877,0.00073883,90448.0,90446.0,0.165844]
[1741015101123,0.00073883,90448.0,90447.0,0.007]
[1741015101374,0.00064355,90448.0,90447.0,0.165842]
[1741015101579,0.1,90444.0,90443.0,0.46585]
[1741015101785,0.1,90444.0,90422.0,0.00841285]
[1741015101786,0.1,90435.0,90382.0,0.332335]
[1741015101991,0.00064355,90448.0,90382.0,0.332335]
[1741015101992,0.1,90410.0,90382.0,0.3279]
[1741015102196,0.1,90409.0,90382.0,0.49238]
[1741015102400,0.1,90425.0,90424.0,0.165885]
[1741015102621,0.0775,90433.0,90382.0,0.49238]
[1741015102622,0.1,90422.0,90421.0,0.16589]
[1741015103001,0.1,90418.0,90417.0,0.165898]
[1741015103244,0.1,90416.0,90386.0,0.3]
[1741015103448,0.1,90407.0,90406.0,0.165918]
[1741015103687,0.1,90407.0,90387.0,0.16444]
[1741015103886,0.00011946,90422.0,90421.0,0.16589]
[1741015104112,0.00011946,90422.0,90421.0,0.48043085]
[1741015104498,4.6e-07,90422.0,90421.0,0.48043085]
[1741015105299,4.6e-07,90422.0,90421.0,0.48743085]
[1741015105528,4.6e-07,90422.0,90421.0,0.48043085]
[1741015106478,4.6e-07,90422.0,90419.0,0.22119]
[1741015106479,2.6e-07,90428.0,90427.0,0.465879]
[1741015106681,0.00039837,90428.0,90427.0,0.630239]
[1741015106914,0.00039837,90428.0,90427.0,0.64477985]
[1741015107855,3.7e-07,90428.0,90427.0,0.64477985]
[1741015108078,3.7e-07,90428.0,90427.0,0.58408865]
[1741015108285,3.7e-07,90428.0,90427.0,0.65177985]
[1741015108409,3.7e-07,90428.0,90427.0,0.64477985]
[1741015108608,0.00024512,90448.0,90447.0,0.48038285]
[1741015108850,1.2e-07,90449.0,90448.0,0.48038185]
[1741015109065,0.0604669,90493.0,90474.0,0.48033385]
[1741015109066,0.1,90492.0,90474.0,0.48033385]
[1741015109367,0.00212941,90475.0,90474.0,0.64461385]
[1741015110944,0.00212941,90475.0,90474.0,0.65161385]
[1741015111137,0.00212941,90475.0,90474.0,0.64461385]
[1741015111459,0.00212941,90475.0,90474.0,0.65161385]
[1741015111665,0.00212941,90475.0,90474.0,0.64461385]
[1741015113135,0.00212941,90475.0,90474.0,0.65161385]
[1741015113344,0.00212941,90475.0,90474.0,0.64461385]
[1741015113581,0.00212941,90475.0,90474.0,0.629913]
[1741015113713,0.00212941,90475.0,90474.0,0.636913]
[1741015114119,0.00212941,90475.0,90474.0,0.629913]
[1741015114366,0.1,90465.0,90443.0,0.16408]
[1741015114535,0.1,90453.0,90443.0,0.16408]
[1741015114794,0.00212941,90475.0,90443.0,0.16408]
[1741015114795,0.1,90468.0,90443.0,0.16408]
[1741015114965,0.1,90467.0,90466.0,0.165808]
[1741015115210,0.1,90452.0,90443.0,0.16408]
[1741015115601,0.1,90452.0,90451.0,0.165835]
[1741015115953,0.1,90451.0,90450.0,0.165837]
[1741015116178,0.1,90451.0,90443.0,0.329928]
[1741015116397,0.1,90451.0,90443.0,0.16408]
[1741015116599,0.1,90451.0,90450.0,0.18037785]
[1741015116811,0.1,90451.0,90450.0,0.01454085]
[1741015117246,0.1,90451.0,90450.0,0.02154085]
[1741015117462,0.314535,90451.0,90450.0,0.007]
[1741015117659,0.1,90421.0,90414.0,0.164]
[1741015117882,0.1255,90451.0,90414.0,0.164]
[1741015117883,0.1,90415.0,90414.0,0.164]
[1741015118000,0.1,90415.0,90380.0,0.221285]
[1741015118001,0.1,90411.0,90387.0,0.221269]
[1741015118208,0.3,90449.0,90350.0,0.45030728]
[1741015118209,0.1,90400.0,90386.0,0.164]
[1741015118450,0.1,90400.0,90385.0,0.221273]
[1741015118658,0.1,90400.0,90385.0,0.221274]
[1741015118832,0.1,90400.0,90379.0,0.164]
[1741015118833,0.1,90400.0,90388.0,0.16595]
[1741015119139,0.1,90400.0,90399.0,0.00056801]
[1741015119618,0.1,90419.0,90399.0,0.00056801]
[1741015119817,0.0465,90428.0,90399.0,0.16649901]
[1741015119818,0.01918662,90400.0,90399.0,0.16649901]
[1741015120011,0.01918662,90400.0,90399.0,0.48103986]
[1741015120235,0.0488,90450.0,90399.0,0.48103986]
[1741015120236,0.1,90441.0,90400.0,0.01454085]
[1741015120455,0.0488,90450.0,90429.0,0.165875]
[1741015120456,0.1,90430.0,90429.0,0.165875]
[1741015120660,0.1,90425.0,90422.0,0.16396]
[1741015120861,0.1,90423.0,90422.0,0.16396]
[1741015121063,0.05729973,90444.0,90422.0,0.16296]
[1741015121265,0.01734456,90449.0,90423.0,0.3]
[1741015121558,0.0488,90450.0,90423.0,0.3]
[1741015121559,0.1,90441.0,90423.0,0.3]
[1741015121753,0.1,90441.0,90440.0,0.165855]
[1741015122441,0.04891936,90450.0,90433.0,0.165868]
[1741015122442,0.1,90434.0,90433.0,0.165868]
[1741015122601,0.1,90434.0,90424.0,0.01454085]
[1741015122838,0.001,90430.0,90429.0,0.02154085]
[1741015123039,0.1,90427.0,90426.0,0.165881]
[1741015123156,0.1,90427.0,90393.0,0.02268931]
[1741015123359,0.1,90427.0,90408.0,0.221217]
[1741015123608,0.1,90430.0,90419.0,0.01454085]
[1741015123812,0.1,90430.0,90426.0,0.01454085]
[1741015123988,0.1,90430.0,90428.0,0.01454085]
[1741015124459,0.01734341,90432.0,90428.0,0.01454085]
[1741015124460,0.01734341,90432.0,90431.0,0.48041285]
[1741015124644,0.1,90449.0,90432.0,0.01354085]
[1741015124907,0.1,90443.0,90441.0,0.165853]
[1741015125192,0.1,90443.0,90440.0,0.165855]
[1741015125401,0.1,90437.0,90436.0,0.3]
[1741015125628,0.1,90437.0,90399.0,0.0001699]
[1741015125629,0.1,90430.0,90399.0,0.0001699]
[1741015125795,0.1,90426.0,90402.0,0.01161271]
[1741015125997,0.04891936,90450.0,90399.0,0.0001699]
[1741015125998,0.1,90418.0,90411.0,0.165908]
[1741015126234,0.1,90418.0,90417.0,0.165898]
[1741015126441,0.1,90418.0,90417.0,0.465898]
[1741015126682,0.1,90418.0,90417.0,0.48043885]
[1741015127003,0.1,90418.0,90417.0,0.31454085]
[1741015127301,0.1,90404.0,90399.0,0.0001699]
[1741015127521,0.1,90400.0,90399.0,0.00056801]
[1741015127736,0.265929,90400.0,90399.0,0.00056801]
[1741015128377,0.265929,90400.0,90361.0,0.002]
[1741015128378,0.1,90372.0,90361.0,0.002]
[1741015128528,0.0771,90408.0,90361.0,0.002]
[1741015128529,0.1,90362.0,90361.0,0.002]
[1741015128731,0.265998,90362.0,90361.0,0.00211946]
[1741015129159,0.1,90362.0,90361.0,0.00211946]
[1741015129371,0.265998,90362.0,90361.0,0.00211946]
[1741015129700,0.265998,90362.0,90361.0,0.00911946]
[1741015129899,0.266015,90353.0,90316.0,0.3279]
[1741015130023,0.266015,90353.0,90352.0,0.0002893]
[1741015130225,0.566033,90343.0,90307.0,0.09455947]
[1741015130456,0.266048,90335.0,90307.0,0.09455947]
[1741015130669,0.343548,90335.0,90334.0,0.00211959]
[1741015131316,0.343548,90335.0,90307.0,0.09455947]
[1741015131317,0.266063,90327.0,90307.0,0.09455947]
[1741015131557,0.266092,90311.0,90307.0,0.09455947]
[1741015131711,0.314292,90311.0,90307.0,0.09455947]
[1741015132119,0.314292,90311.0,90256.0,0.16572]
[1741015132120,0.1,90283.0,90256.0,0.16572]
[1741015132527,0.1,90283.0,90261.0,0.166183]
[1741015132738,0.1,90283.0,90256.0,0.16572]
[1741015132739,0.1,90283.0,90262.0,0.166181]
[1741015132943,0.1,90283.0,90256.0,0.16572]
[1741015133179,0.1,90283.0,90257.0,0.221588]
[1741015133380,0.101,90283.0,90282.0,0.004]
[1741015133597,0.1,90283.0,90282.0,0.00239883]
[1741015133996,0.0482,90311.0,90282.0,0.00239883]
[1741015134200,0.1,90283.0,90282.0,0.00239883]
[1741015134378,0.101,90283.0,90282.0,0.00439883]
[1741015134581,0.001,90283.0,90282.0,0.18508568]
[1741015134760,0.101,90283.0,90282.0,0.00439883]
[1741015135785,0.1,90283.0,90282.0,0.00239883]
[1741015136185,0.101,90283.0,90282.0,0.00539883]
[1741015136387,0.1,90283.0,90282.0,0.00239883]